bitfinex/quotes_ETHUSD_20241129
["timestamp","ask_amount","ask_price","bid_price","bid_amount"]
[1732881056855,0.12364251,3600.5,3600.3,2.77752]
[1732881057059,0.12364251,3600.8,3600.3,2.77752]
[1732881057262,0.12364251,3600.7,3599.8,0.8212]
[1732881057419,3.0,3600.4,3599.7,2.77795]
[1732881057759,0.12364251,3600.3,3599.7,2.77795]
[1732881057946,2.90127251,3600.2,3599.5,3.64013]
[1732881058263,0.15143921,3600.1,3599.6,2.77808]
[1732881058421,0.12369326,3600.1,3599.5,3.64013]
[1732881058628,0.12369326,3600.1,3599.7,2.77793]
[1732881058920,0.12369326,3600.1,3599.8,2.86158448]
[1732881059120,1.00010922,3600.3,3599.8,0.08367448]
[1732881059121,0.12369326,3600.2,3599.8,0.08367448]
[1732881059328,0.12369326,3600.2,3599.8,2.86155448]
[1732881059526,0.12369326,3600.4,3599.9,0.08366145]
[1732881059762,0.12369326,3600.3,3600.0,2.77777]
[1732881060054,0.12369326,3600.5,3600.3,2.77754]
[1732881060353,0.12369326,3600.7,3600.4,0.08336104]
[1732881060558,0.12369326,3600.8,3600.4,0.08336104]
[1732881060733,0.12369326,3600.7,3600.4,0.08336104]
[1732881061055,0.12369326,3600.8,3600.5,2.77739]
[1732881061257,0.12369326,3600.7,3600.5,2.77739]
[1732881061421,0.15143921,3600.9,3600.6,0.0832409]
[1732881061760,0.12369326,3600.8,3600.6,2.77724]
[1732881061921,0.12369326,3600.9,3600.7,0.08318083]
[1732881062121,0.12369326,3600.8,3600.7,0.08318083]
[1732881062329,0.12369326,3600.9,3600.7,0.08318083]
[1732881062592,0.12369326,3600.8,3600.4,2.7774]
[1732881062806,0.12369326,3600.9,3600.5,2.77738]
[1732881063009,0.12369326,3600.8,3600.1,2.77767]
[1732881063180,2.90086326,3600.8,3600.1,2.77767]
[1732881063377,2.90097326,3600.7,3600.0,2.77775]
[1732881063577,2.7774,3600.5,3599.8,0.8347]
[1732881063801,0.15136495,3600.4,3600.0,2.77776]
[1732881064219,0.123619,3600.4,3600.0,2.77776]
[1732881064510,0.123619,3600.5,3600.0,2.77776]
[1732881064671,0.15136495,3600.5,3599.9,2.77778]
[1732881064871,0.15136495,3600.5,3600.0,2.77777]
[1732881065071,0.123619,3600.4,3600.1,2.77764]
[1732881065311,0.123619,3600.5,3600.1,2.77764]
[1732881065486,0.123619,3600.6,3600.1,2.77764]
[1732881065873,0.123619,3600.6,3600.2,2.77759]
[1732881066212,0.123619,3600.7,3600.3,2.77748]
[1732881066433,0.123619,3600.6,3600.2,2.77759]
[1732881066638,0.123619,3600.7,3600.3,2.7775]
[1732881066931,0.123619,3600.7,3599.8,0.8347]
[1732881067096,0.123619,3600.8,3599.8,3.61261]
[1732881067295,0.1236753,3600.7,3600.1,2.77765]
[1732881067495,0.1236753,3600.7,3599.9,0.361261]
[1732881067496,2.9010353,3600.6,3599.9,2.77777]
[1732881067733,2.9011053,3600.5,3599.9,2.77777]
[1732881067915,2.9011453,3600.4,3599.9,2.77777]
[1732881068123,2.97524048,3600.6,3600.0,2.77777]
[1732881068295,2.77759,3600.3,3599.8,0.8347]
[1732881068497,0.12370034,3600.2,3599.8,2.77792]
[1732881068890,0.848,3600.8,3600.2,2.77755]
[1732881069094,0.12370137,3600.7,3600.4,2.77743]
[1732881069337,3.76733137,3600.6,3599.6,2.77803]
[1732881069537,3.58125031,3600.5,3599.8,2.77785]
[1732881069740,3.58125031,3600.5,3599.6,3.64534]
[1732881069741,0.12370137,3600.4,3599.6,0.8673]
[1732881070067,0.12370137,3600.3,3600.2,2.77762]
[1732881070443,0.19792219,3600.8,3600.1,2.77768]
[1732881070629,6.61273,3600.9,3600.3,2.7775]
[1732881070833,0.1237648,3600.7,3600.1,2.77768]
[1732881071131,0.1237648,3600.6,3600.2,2.77762]
[1732881071342,0.1237648,3600.5,3600.2,2.77754]
[1732881071506,0.1237648,3600.4,3600.2,2.77754]
[1732881071699,0.1237648,3600.3,3600.0,2.77774]
[1732881071900,0.1237648,3600.2,3600.1,2.7777]
[1732881072110,0.1237648,3600.6,3600.3,2.77747]
[1732881072301,0.19802364,3601.0,3600.5,2.77739]
[1732881072518,0.12384274,3600.9,3600.6,2.7773]
[1732881072723,0.12384274,3600.8,3600.6,2.7773]
[1732881072919,0.12384274,3600.7,3600.3,2.77752]
[1732881073135,0.12384274,3600.6,3600.3,2.77752]
[1732881073308,0.12384274,3600.5,3600.4,2.77746]
[1732881073740,0.12384274,3600.9,3600.1,0.8744]
[1732881073960,0.12384274,3600.8,3600.7,2.77723]
[1732881074447,0.12384274,3600.8,3600.7,2.85767517]
[1732881076715,0.12384274,3601.1,3600.8,2.7771]
[1732881076948,0.12384274,3601.0,3600.7,0.08044517]
[1732881077149,2.80464595,3601.2,3600.9,0.08032505]
[1732881077455,4.05411635,3601.2,3601.0,0.08026499]
[1732881077614,0.24792598,3601.1,3600.6,2.77729]
[1732881077818,0.24792598,3601.1,3600.7,2.77723]
[1732881077819,0.12396301,3601.0,3600.7,2.77723]
[1732881078030,0.12396301,3600.9,3600.7,2.77723]
[1732881078225,0.12396301,3600.8,3600.7,2.77723]
[1732881079848,0.12396301,3600.8,3600.7,4.156391]
[1732881080020,0.12396297,3601.1,3601.0,2.777]
[1732881080524,0.12396297,3601.1,3601.0,3.5731]
[1732881083626,0.12396297,3601.1,3601.0,6.60086376]
[1732881083855,0.12396297,3601.1,3601.0,6.5731]
[1732881084059,0.12396297,3601.1,3601.0,7.85137594]
[1732881084876,0.12374095,3602.5,3602.1,2.77613]
[1732881085474,0.97154095,3602.6,3602.1,2.77613]
[1732881085769,2.77586,3602.5,3601.9,2.77626]
[1732881085966,0.1514869,3602.4,3601.8,2.77631]
[1732881086168,2.80369595,3602.4,3601.8,2.77631]
[1732881086474,0.02774595,3602.4,3601.8,2.77631]
[1732881086630,2.77605,3602.3,3601.7,2.77646]
[1732881086962,0.02774595,3602.2,3601.7,2.77646]
[1732881087176,0.02774595,3602.2,3601.8,2.77636]
[1732881087371,0.02774595,3602.3,3601.8,2.77636]
[1732881087832,0.02774595,3602.3,3601.9,2.77629]
[1732881088377,0.02774595,3602.3,3601.7,2.77643]
[1732881088733,2.77617,3602.1,3601.5,2.77656]
[1732881088949,0.88844595,3602.0,3601.6,2.77653]
[1732881089264,0.88844595,3602.0,3601.4,3.61338]
[1732881089265,0.88844595,3602.0,3601.7,2.77646]
[1732881089466,0.8607,3602.0,3601.7,2.8560213]
[1732881090359,0.8607,3602.0,3601.7,0.0795613]
[1732881090553,0.02774595,3601.9,3601.7,0.0795613]
[1732881090749,0.88844595,3602.0,3601.8,0.07950127]
[1732881090981,0.88844595,3602.0,3601.5,2.77656]
[1732881091388,0.88844595,3602.0,3601.6,0.07962133]
[1732881092087,0.88844595,3602.0,3601.6,2.85614133]
[1732881092252,0.88844595,3602.0,3601.6,2.77652]
[1732881092624,0.88844595,3602.0,3601.7,0.0795613]
[1732881092953,4.04350036,3602.0,3601.7,0.0795613]
[1732881093285,2.77638,3601.8,3601.2,2.77682]
[1732881093505,2.77655,3601.6,3601.0,2.77696]
[1732881093647,2.80440595,3601.5,3600.2,2.77756]
[1732881093858,0.8531,3601.4,3600.8,2.77709]
[1732881094298,0.8531,3601.4,3601.0,2.77697]
[1732881094465,0.8531,3601.4,3601.1,2.77691]
[1732881094670,0.8531,3601.4,3601.0,2.77697]
[1732881095581,0.8531,3601.4,3600.4,2.77743]
[1732881095778,0.8531,3601.4,3601.0,2.77698]
[1732881096207,0.02774595,3601.3,3600.7,2.77716]
[1732881096572,0.8531,3601.4,3600.9,2.77702]
[1732881098362,0.8531,3601.4,3600.9,2.77704]
[1732881098700,0.8531,3601.4,3601.0,2.77693]
[1732881099985,0.02774595,3601.3,3600.7,2.7772]
[1732881101005,0.02774595,3601.3,3600.9,2.77706]
[1732881101199,0.02774595,3601.3,3600.7,2.7772]
[1732881101415,0.02774595,3601.3,3600.3,0.8737]
[1732881101416,2.77692,3601.1,3600.6,2.7773]
[1732881101581,2.7768,3601.3,3600.7,2.77722]
[1732881102288,0.12377939,3601.2,3600.7,2.77722]
[1732881103306,2.90066939,3601.2,3600.3,0.8737]
[1732881103505,0.12377939,3601.1,3600.6,2.77727]
[1732881103965,2.77689,3601.2,3600.6,2.77727]
[1732881104167,0.12379989,3601.1,3600.6,2.77727]
[1732881104370,0.12379989,3601.1,3600.7,0.08012462]
[1732881104673,0.15154584,3601.1,3600.7,0.08012462]
[1732881104889,2.92850584,3601.1,3600.7,0.08012462]
[1732881105199,2.92850584,3601.1,3600.5,2.77738]
[1732881105501,3.56023,3601.0,3600.6,0.08018469]
[1732881105658,0.7832,3601.0,3600.6,0.08018469]
[1732881105862,0.7832,3601.0,3600.5,2.77737]
[1732881105863,0.90702657,3601.0,3600.5,2.77737]
[1732881106104,0.90702657,3601.0,3600.7,0.08028555]
[1732881106402,2.77721,3600.8,3600.6,0.08034561]
[1732881106610,2.77721,3600.8,3600.1,2.77768]
[1732881106790,1.23868582,3601.0,3600.1,2.77768]
[1732881106969,0.90702657,3601.0,3600.1,2.77768]
[1732881107167,2.77722,3600.8,3600.1,2.77768]
[1732881107386,2.77726,3600.7,3600.1,2.77768]
[1732881107629,2.90108657,3600.7,3600.1,2.77768]
[1732881107868,2.77726,3600.7,3600.1,2.77768]
[1732881108763,2.77731,3600.6,3600.1,2.77768]
[1732881109065,2.7771,3600.9,3600.1,2.77768]
[1732881109279,3.13325,3600.8,3600.1,2.77768]
[1732881109902,2.77725,3600.7,3600.1,2.77768]
[1732881110598,2.80506595,3600.6,3600.0,3.57275]
[1732881110802,2.80506595,3600.6,3600.0,2.77775]
[1732881111303,2.77724,3600.7,3600.1,2.77768]
[1732881111522,0.35603,3600.8,3600.1,2.77768]
[1732881111808,0.7628,3600.7,3599.8,2.77792]
[1732881112013,2.77745,3600.5,3599.8,2.77792]
[1732881112311,2.90119724,3600.6,3599.8,2.77792]
[1732881112478,2.9012188,3600.5,3599.9,2.7778]
[1732881112673,2.77747,3600.4,3599.7,1.31086805]
[1732881112887,2.77747,3600.4,3599.8,2.7779]
[1732881113115,2.77731,3600.6,3599.8,2.7779]
[1732881113316,2.77747,3600.4,3599.8,2.7779]
[1732881113874,0.7628,3600.7,3599.7,1.31086805]
[1732881113875,2.77755,3600.3,3599.7,1.31086805]
[1732881114211,2.77748,3600.4,3599.8,2.77792]
[1732881115480,2.77748,3600.4,3599.7,1.31086805]
[1732881115707,2.77759,3600.3,3599.7,4.08886805]
[1732881116009,3.55061,3600.1,3599.5,0.8158]
[1732881116225,3.55061,3600.1,3599.2,0.8158]
[1732881116226,0.7729,3600.1,3599.2,0.8158]
[1732881116513,0.02774595,3600.0,3599.6,2.77805]
[1732881116681,0.7729,3600.1,3599.6,2.77805]
[1732881116884,1.4411038,3600.1,3599.3,0.54708001]
[1732881117126,2.77789,3599.9,3599.3,0.54708001]
[1732881117275,0.8299,3600.3,3599.7,2.77797]
[1732881117681,0.95356115,3600.3,3599.8,2.77792]
[1732881117990,0.8299,3600.3,3599.8,2.77792]
[1732881118379,0.02774595,3600.2,3599.8,2.77792]
[1732881118715,0.95357136,3600.3,3599.8,2.77792]
[1732881119299,0.95357136,3600.3,3599.9,2.85884143]
[1732881119503,0.8299,3600.3,3599.9,0.08104143]
[1732881119731,0.95357136,3600.3,3599.8,2.77787]
[1732881119928,0.95357136,3600.3,3600.0,0.08098134]
[1732881120134,0.8299,3600.3,3599.9,2.85888143]
[1732881120338,0.8299,3600.3,3600.1,0.08092125]
[1732881120645,0.8299,3600.3,3600.2,0.08086117]
[1732881120828,0.95357136,3600.3,3600.2,0.08086117]
[1732881121023,5.81142801,3600.7,3600.0,0.8212]
[1732881121024,0.12367136,3600.5,3600.0,0.8212]
[1732881121230,2.90099136,3600.6,3600.2,0.08086117]
[1732881121418,0.12367136,3600.5,3600.1,2.77769]
[1732881121612,0.12367136,3600.6,3600.1,2.77769]
[1732881121812,0.12367136,3600.6,3600.2,0.08086117]
[1732881122209,2.77754,3600.3,3600.2,0.08086117]
[1732881122686,2.90127923,3600.3,3599.7,0.8195]
[1732881122854,2.90127923,3600.3,3599.7,3.5975]
[1732881123008,0.12373923,3600.2,3599.8,0.08110152]
[1732881123204,0.12373923,3600.2,3599.8,2.77792]
[1732881123409,0.12373923,3600.3,3599.8,2.77792]
[1732881123646,0.12373923,3600.3,3599.9,0.08104143]
[1732881124349,0.12376057,3600.3,3599.9,0.08104143]
[1732881124643,0.12376057,3600.4,3599.9,0.08104143]
[1732881125032,0.12376057,3600.3,3599.9,0.08104143]
[1732881125657,2.77747,3600.4,3599.8,2.7779]
[1732881125949,0.12377,3600.3,3600.0,0.08098134]
[1732881126254,2.77741,3600.5,3600.1,0.08092125]
[1732881126458,0.12377,3600.4,3600.1,0.08092125]
[1732881126632,0.12377,3600.4,3599.9,2.7778]
[1732881126828,0.12377,3600.5,3600.0,0.08098134]
[1732881127028,0.12377,3600.4,3599.9,2.7778]
[1732881127223,0.12377,3600.4,3600.0,0.08098134]
[1732881127427,0.12377,3600.4,3599.9,2.7778]
[1732881127743,0.12377,3600.4,3600.0,0.08098134]
[1732881127948,0.12377,3600.3,3600.0,0.08098134]
[1732881128145,0.12377,3600.4,3599.7,3.59749]
[1732881128355,0.413887,3600.3,3600.1,0.08004792]
[1732881128552,0.12377,3600.2,3599.8,2.77792]
[1732881128740,0.12377,3600.2,3599.9,2.77784]
[1732881128924,0.12377,3600.4,3599.9,2.77784]
[1732881129125,0.12377,3600.3,3599.9,2.77784]
[1732881129654,0.12377,3600.2,3599.7,3.59749]
[1732881129831,0.12377,3600.3,3599.8,2.77792]
[1732881130054,0.12377,3600.2,3599.8,2.77792]
[1732881130371,2.77748,3600.4,3599.8,2.77792]
[1732881130674,2.77767,3600.2,3599.7,0.8195]
[1732881130852,2.77767,3600.2,3598.7,3.0]
[1732881130853,0.7631,3600.0,3599.1,3.54306]
[1732881131161,2.77814,3599.6,3598.9,2.77856]
[1732881131370,0.91476357,3599.5,3598.9,2.77856]
[1732881131534,0.12391762,3599.4,3598.8,3.54328]
[1732881131737,0.15166155,3599.3,3598.9,2.77857]
[1732881131924,0.7631,3599.5,3599.0,2.77847]
[1732881132274,0.1517078,3599.4,3598.7,2.77874]
[1732881132423,0.1517078,3599.4,3598.5,3.59231]
[1732881132424,2.77837,3599.3,3598.5,3.59231]
[1732881132628,0.12396185,3599.2,3598.7,2.77878]
[1732881132865,2.77829,3599.4,3598.7,2.77878]
[1732881133157,2.77829,3599.4,3598.5,3.59231]
[1732881133158,2.90226198,3599.3,3598.5,0.8134]
[1732881133365,0.12392198,3599.2,3598.6,2.77884]
[1732881133551,0.12392198,3599.1,3598.7,2.77877]
[1732881133750,0.12392198,3599.0,3598.8,2.77865]
[1732881133959,0.12389716,3599.4,3599.1,2.77843]
[1732881134137,0.12389716,3599.3,3599.2,2.77837]
[1732881134345,0.12389716,3599.3,3599.2,2.85905934]
[1732881134646,0.12389716,3599.4,3599.2,2.85905934]
[1732881134851,0.12389716,3599.3,3599.2,2.85905934]
[1732881135070,0.12389716,3599.4,3599.2,2.85905934]
[1732881135370,3.54413,3599.8,3599.2,2.85905934]
[1732881135543,0.12390653,3599.7,3599.2,2.85905934]
[1732881135737,0.12390653,3599.6,3599.2,2.85905934]
[1732881135953,0.12390657,3599.5,3599.2,2.85905934]
[1732881136166,0.12390657,3599.4,3599.2,2.85905934]
[1732881136447,1.398391,3599.8,3599.2,2.85905934]
[1732881136448,0.12390657,3599.7,3599.2,0.08068934]
[1732881136646,0.49071123,3599.6,3599.2,0.08068934]
[1732881136854,0.12390657,3599.5,3599.2,2.85906934]
[1732881137060,0.36680466,3599.6,3599.2,2.85906934]
[1732881137061,0.12390657,3599.4,3599.2,2.77838]
[1732881137264,0.12390657,3599.7,3599.3,0.08062923]
[1732881137433,0.12390657,3599.6,3599.5,2.77816]
[1732881137639,0.12390657,3600.0,3599.5,0.44940793]
[1732881137855,0.12390657,3599.9,3599.6,2.77803]
[1732881138050,0.12390657,3599.8,3599.6,2.77803]
[1732881138266,0.02774595,3600.0,3599.7,0.08038881]
[1732881138477,2.90176991,3599.9,3599.7,0.08038881]
[1732881138649,3.5457379,3599.8,3599.0,2.77851]
[1732881138834,2.77817,3599.5,3598.9,2.77862]
[1732881139156,2.77834,3599.3,3598.7,2.77877]
[1732881139331,2.90231991,3599.2,3598.5,0.8152]
[1732881139530,0.7524,3599.0,3598.5,0.8152]
[1732881139746,0.02774595,3598.9,3598.2,3.59435]
[1732881139960,2.77882,3598.7,3598.0,2.77931]
[1732881140235,0.7524,3598.4,3597.6,2.7796]
[1732881140462,0.7524,3598.4,3597.6,2.77956]
[1732881140666,0.02774595,3598.3,3597.6,0.55561888]
[1732881140828,0.02774595,3598.3,3597.4,0.8152]
[1732881141034,0.12378838,3598.3,3597.4,0.8152]
[1732881141331,0.12378838,3598.2,3597.7,2.7795]
[1732881141549,0.12378838,3598.2,3597.5,2.7797]
[1732881141550,2.77922,3598.2,3597.6,2.77961]
[1732881141957,3.53147,3598.4,3597.6,2.77961]
[1732881142285,0.12369033,3598.3,3597.8,2.77945]
[1732881142485,3.53147,3598.4,3597.6,2.77961]
[1732881142486,0.7524,3598.4,3597.6,2.77958]
[1732881142784,3.53146,3598.4,3597.6,2.77958]
[1732881142988,4.47486292,3598.4,3597.7,2.77953]
[1732881143345,2.77909,3598.3,3597.7,2.77953]
[1732881143754,0.7524,3598.4,3597.4,0.8152]
[1732881144083,0.7524,3598.4,3597.6,2.77962]
[1732881144288,2.77925,3598.1,3597.4,2.77974]
[1732881144502,2.77955,3597.7,3596.7,0.79526774]
[1732881144663,2.77955,3597.7,3597.0,2.78007]
[1732881145210,0.7615,3598.0,3597.0,2.78008]
[1732881145211,0.7615,3597.5,3597.0,2.78008]
[1732881145694,0.7615,3597.5,3597.1,2.78]
[1732881146877,0.7615,3597.5,3596.7,0.03586774]
[1732881147065,2.77983,3597.4,3596.7,2.81618774]
[1732881147278,2.77987,3597.3,3596.7,0.03586774]
[1732881147483,2.77999,3597.2,3596.8,0.08236992]
[1732881147854,2.77999,3597.2,3596.7,0.03586774]
[1732881147855,0.8294,3597.1,3596.7,0.03586774]
[1732881148056,0.8294,3597.1,3596.9,0.08230973]
[1732881148283,0.8294,3597.1,3596.7,0.03586774]
[1732881148284,0.8294,3597.1,3596.8,0.08236992]
[1732881148497,3.60947,3597.1,3597.0,0.08224954]
[1732881148693,2.78024,3596.8,3596.7,0.03586774]
[1732881148869,1.468339,3597.1,3596.7,0.03586774]
[1732881149057,3.8294,3597.4,3596.8,2.78019]
[1732881149253,2.77986,3597.3,3596.7,2.81617774]
[1732881149486,2.77986,3597.3,3596.9,0.08274937]
[1732881149654,2.77986,3597.3,3596.8,0.08280956]
[1732881149849,0.8294,3597.4,3596.8,2.78024]
[1732881149850,3.8294,3597.4,3596.8,2.78024]
[1732881150151,3.8294,3597.4,3596.9,0.08274937]
[1732881150152,0.8294,3597.4,3596.9,0.08274937]
[1732881150676,3.0,3597.7,3596.9,2.86288937]
[1732881150873,0.8294,3597.7,3597.1,2.77995]
[1732881151181,0.8294,3597.7,3597.1,0.7904]
[1732881151351,0.02774595,3597.6,3597.2,0.08256882]
[1732881151552,0.8294,3597.7,3596.7,0.03586774]
[1732881151553,2.77973,3597.5,3596.7,0.03586774]
[1732881151771,2.80752595,3597.4,3597.3,0.08250864]
[1732881151978,0.7964,3597.2,3596.7,0.03586774]
[1732881152151,2.78009,3597.0,3596.7,0.03586774]
[1732881152351,2.78024,3596.8,3596.7,0.03586774]
[1732881152554,2.78017,3596.9,3596.7,0.03586774]
[1732881153958,2.7801,3597.0,3596.7,0.03586774]
[1732881154197,3.415752,3597.0,3596.7,0.03586774]
[1732881154503,0.7964,3597.2,3596.7,0.03586774]
[1732881154698,3.57634,3597.2,3596.7,0.03586774]
[1732881155065,2.78006,3597.1,3596.7,0.03586774]
[1732881155403,0.7964,3597.2,3596.7,0.03586774]
[1732881155606,3.57635,3597.2,3596.7,0.03586774]
[1732881156057,2.78002,3597.1,3596.7,0.03586774]
[1732881156878,3.24595844,3597.1,3596.7,0.03586774]
[1732881159672,0.02774595,3597.0,3596.7,0.03586774]
[1732881160469,2.80784595,3597.0,3596.7,0.03586774]
[1732881161085,2.78022,3596.9,3596.7,0.03586774]
[1732881162609,3.24599844,3597.1,3596.7,0.03586774]
[1732881162814,3.18435984,3597.0,3596.7,0.03586774]
[1732881162975,0.40423984,3597.0,3596.7,0.03586774]
[1732881164115,3.18433984,3597.0,3596.7,0.03586774]
[1732881164413,3.18433984,3597.0,3596.8,0.08288677]
[1732881164771,3.18433984,3597.0,3596.7,0.03586774]
[1732881164973,0.67607998,3596.9,3596.7,0.03586774]
[1732881165178,3.57635,3597.2,3596.7,0.03586774]
[1732881165370,2.78002,3597.1,3596.7,0.03586774]
[1732881166997,0.7964,3597.2,3596.7,0.03586774]
[1732881167207,0.64165659,3597.4,3596.8,0.7677]
[1732881167208,3.64165659,3597.4,3596.8,0.7677]
[1732881167415,0.02774595,3597.3,3596.8,3.5479]
[1732881167875,3.64165659,3597.4,3596.8,3.5479]
[1732881168375,0.11224082,3597.3,3596.8,3.5479]
[1732881168576,0.13998677,3597.3,3596.8,3.5479]
[1732881168813,0.13998677,3597.3,3596.8,0.7677]
[1732881169031,1.15486411,3597.3,3596.7,0.03586774]
[1732881169177,3.93478411,3597.3,3596.7,0.03586774]
[1732881169381,0.11224995,3597.2,3596.7,0.03586774]
[1732881169581,0.02774595,3597.1,3596.7,0.03586774]
[1732881169978,0.11224995,3597.2,3596.7,0.03586774]
[1732881170223,1.16168968,3597.2,3596.8,2.78022]
[1732881170431,1.16168968,3597.2,3596.7,0.03586774]
[1732881170432,0.11224995,3597.3,3597.1,2.78001]
[1732881170579,0.11224995,3597.6,3597.1,2.78001]
[1732881170779,0.11224995,3597.5,3597.1,2.78001]
[1732881170990,0.782,3597.4,3596.9,2.78016]
[1732881171194,0.02774595,3597.3,3596.9,2.78016]
[1732881171401,0.11224995,3597.3,3596.7,2.81615774]
[1732881172182,4.50717999,3597.4,3596.7,2.81615774]
[1732881173019,1.72734999,3597.4,3596.8,2.7802]
[1732881173599,0.11255157,3597.3,3596.8,2.7802]
[1732881174190,7.28698999,3597.4,3596.7,0.03586774]
[1732881174521,7.28698999,3597.4,3596.7,2.81618774]
[1732881174522,1.72734999,3597.4,3596.7,2.81618774]
[1732881174812,2.80762595,3597.3,3596.7,2.81618774]
[1732881175028,2.92024264,3597.3,3596.7,0.03586774]
[1732881175178,0.11261669,3597.2,3596.7,0.03586774]
[1732881175399,0.02774595,3597.1,3596.7,0.03586774]
[1732881175600,0.14038315,3597.1,3596.8,0.08280127]
[1732881175804,3.57077,3596.9,3596.7,0.03586774]
[1732881176037,0.1126372,3596.8,3596.7,0.03586774]
[1732881176540,2.8928772,3596.8,3596.7,0.03586774]
[1732881176937,2.8928772,3596.8,3596.7,0.11872921]
[1732881177138,2.8928772,3596.8,3596.7,0.03586774]
[1732881177338,3.56843725,3596.8,3596.7,0.11872921]
[1732881178343,3.56843725,3596.8,3596.7,0.03586774]
[1732881178647,4.92983725,3596.8,3596.7,0.03586774]
[1732881181128,4.37983725,3596.8,3596.7,0.03586774]
[1732881181566,0.1126372,3596.8,3596.7,0.03586774]
[1732881181927,0.1126372,3596.8,3596.7,0.11886299]
[1732881182126,0.1126372,3596.8,3596.7,0.03586774]
[1732881182341,0.1126372,3596.8,3596.7,0.11886299]
[1732881182551,0.1126372,3596.8,3596.7,0.03586774]
[1732881182728,0.1126372,3596.8,3596.7,0.11886299]
[1732881182978,0.1126372,3596.8,3596.7,0.03586774]
[1732881183172,0.1126372,3596.8,3596.7,0.11886299]
[1732881183481,0.1126372,3597.0,3596.7,3.70598299]
[1732881183682,0.8315,3597.7,3596.9,2.78017]
[1732881183864,2.77968,3597.6,3596.9,2.78017]
[1732881184066,2.77968,3597.6,3597.0,0.08278019]
[1732881184473,2.77968,3597.6,3597.0,2.86287019]
[1732881184678,3.8315,3597.7,3597.0,2.86287019]
[1732881185005,3.34081263,3598.2,3597.3,2.77978]
[1732881185006,2.77935,3598.0,3597.3,2.77978]
[1732881185297,3.59069,3598.1,3597.4,2.86231947]
[1732881185661,2.77929,3598.1,3597.4,2.86231947]
[1732881185857,2.77917,3598.2,3597.5,2.77965]
[1732881186101,2.77903,3598.4,3597.8,2.77943]
[1732881186471,2.77903,3598.4,3597.9,0.08212557]
[1732881186694,2.77886,3598.6,3598.1,0.7978]
[1732881186916,2.77872,3598.8,3598.1,0.7978]
[1732881187119,0.633165,3598.7,3598.2,0.08194236]
[1732881187327,2.779,3598.5,3598.2,0.08194236]
[1732881187493,0.02774595,3598.4,3598.2,0.08194236]
[1732881188237,2.77909,3598.3,3598.2,0.08194236]
[1732881188412,2.77922,3598.2,3597.5,3.5855]
[1732881188595,0.02774595,3598.1,3597.5,3.5855]
[1732881189424,3.3378256,3598.2,3597.5,3.5855]
[1732881189626,3.36557155,3598.2,3597.5,3.5855]
[1732881190352,2.77929,3598.1,3597.5,3.58549]
[1732881190683,0.02774595,3598.0,3597.5,3.58549]
[1732881190883,0.02774595,3598.0,3597.2,0.7724]
[1732881190884,2.80706595,3598.0,3597.2,0.7724]
[1732881191110,0.02774595,3598.0,3597.2,0.7724]
[1732881191314,0.02774595,3598.0,3597.3,2.77986]
[1732881191537,0.02774595,3598.0,3597.5,2.7797]
[1732881191822,2.77925,3598.1,3597.4,2.77972]
[1732881192117,0.02774595,3598.0,3597.2,3.55233]
[1732881192327,2.7794,3597.9,3597.2,3.55233]
[1732881192618,0.02774595,3597.8,3597.3,2.77984]
[1732881193325,2.80706595,3598.0,3597.3,2.77984]
[1732881193628,2.7794,3597.9,3597.3,2.77984]
[1732881193796,0.02774595,3597.8,3597.3,2.77984]
[1732881193996,2.77955,3597.7,3597.2,0.7724]
[1732881194299,2.77968,3597.6,3597.3,0.08244108]
[1732881194827,3.52955,3597.7,3596.9,3.53185]
[1732881195028,2.7797,3597.5,3597.4,0.08240572]
[1732881195184,3.52955,3597.7,3596.9,0.7517]
[1732881195185,0.75,3597.7,3597.1,2.77996]
[1732881195388,3.32946,3597.9,3596.9,0.7517]
[1732881195620,2.77947,3597.8,3597.2,0.08252607]
[1732881195827,3.3294,3597.9,3597.1,2.77996]
[1732881196030,3.3294,3597.9,3597.3,0.08246589]
[1732881196330,0.821,3597.4,3596.7,2.81617774]
[1732881196481,2.78002,3597.1,3596.7,0.03586774]
[1732881197124,2.80776595,3597.1,3596.7,0.03586774]
[1732881197330,2.78016,3597.0,3596.7,0.03586774]
[1732881197624,0.02774595,3596.9,3596.7,0.03586774]
[1732881198097,0.02774595,3597.2,3596.7,0.03586774]
[1732881198285,3.55074,3596.8,3596.7,0.03586774]
[1732881198631,4.12848595,3596.8,3596.7,0.03586774]
[1732881199911,4.10074,3596.8,3596.7,0.03586774]
[1732881202534,3.33024,3596.8,3596.7,0.11883956]
[1732881202704,0.8137,3597.6,3596.7,0.03586774]
[1732881202909,0.1108074,3597.6,3597.2,2.77992]
[1732881203219,0.1108074,3597.7,3597.2,3.55762]
[1732881203410,2.77969,3597.6,3597.3,0.08259414]
[1732881203605,2.77978,3597.4,3597.3,0.08259414]
[1732881203810,2.80752595,3597.4,3597.3,0.08259414]
[1732881204253,2.80752595,3597.4,3596.9,0.7848]
[1732881204426,2.77986,3597.3,3596.9,0.7848]
[1732881204751,2.80768595,3597.2,3597.0,0.08277469]
[1732881204924,3.56188595,3597.2,3597.0,0.08277469]
[1732881205125,0.55,3597.1,3596.7,0.03586774]
[1732881206012,2.7801,3597.0,3596.7,0.03586774]
[1732881206443,0.02774595,3596.9,3596.7,0.03586774]
[1732881206647,2.7801,3597.0,3596.7,0.03586774]
[1732881206963,0.02774595,3596.9,3596.7,0.03586774]
[1732881207751,0.55,3597.1,3596.7,0.03586774]
[1732881208141,0.55,3597.3,3596.7,2.81617774]
[1732881208314,0.66085138,3597.3,3596.7,0.03586774]
[1732881208514,2.77994,3597.2,3596.7,0.03586774]
[1732881208715,2.77988,3597.3,3596.7,3.45429851]
[1732881208912,2.77969,3597.6,3597.1,0.7922]
[1732881209470,2.77969,3597.6,3597.2,0.08272466]
[1732881209675,0.02774595,3597.5,3597.2,0.08272466]
[1732881209969,2.77969,3597.6,3597.2,0.08272466]
[1732881210726,0.02774595,3597.5,3597.2,0.08272466]
[1732881210965,0.11090314,3597.6,3597.2,0.08272466]
[1732881211367,0.11090314,3597.8,3597.3,2.77986]
[1732881211538,0.11090314,3597.8,3597.6,3.56748]
[1732881211866,0.11092877,3598.1,3597.7,2.77955]
[1732881212190,0.11092877,3598.2,3597.7,2.86191449]
[1732881212463,0.02774595,3598.1,3597.7,2.86191449]